fUST/lending_fUST_20241103
["ID","MTS","AMOUNT","RATE_DAILY","PERIOD"]
[341197995,1730617843926,-1016.34,0.00030956,4]
[341197996,1730617843936,-500.0,0.00030956,4]
[341197997,1730617843949,-212.35099484,0.00030956,4]
[341197998,1730617843959,-500.0,0.00030956,4]
[341197999,1730617843969,-500.0,0.00030956,4]
[341198000,1730617843978,-500.0,0.00030956,4]
[341198001,1730617843989,-500.0,0.00030956,4]
[341198002,1730617843999,-616.08,0.00030956,4]
[341198003,1730617844009,-954.22,0.00030956,4]
[341198004,1730617844018,-500.0,0.00030956,4]
[341198005,1730617844028,-500.0,0.00030957,4]
[341198006,1730617844037,-226.2923107,0.00030957,4]
[341198015,1730618266721,199.7084466,0.00033409,30]
[341198054,1730618830152,-168.70776,0.00028851,2]
[341198055,1730618830176,-140.8722528,0.00029671,2]
[341198056,1730618831132,-23.8855392,0.00029671,2]
[341198057,1730618831156,-154.39471124,0.0003065,30]
[341198063,1730618948196,-1335.98695209,0.00022,2]
[341198064,1730618948218,-300.0,0.00024999,2]
[341198065,1730618948238,-3456.02299438,0.00025,2]
[341198066,1730618953094,-2104.38771308,0.00025,2]
[341198070,1730618959091,-15428.67911451,0.00025,2]
[341198071,1730618959114,-420.0,0.00027082,2]
[341198119,1730619038104,-549.58244852,0.0003083,2]
[341198120,1730619038114,-46.70755148,0.00030838,2]
[341198121,1730619038128,-123.33342188,0.00030838,2]
[341198122,1730619038139,-3000.0,0.000309,6]
[341198123,1730619038149,-3000.0,0.0003091,6]
[341198124,1730619038159,-3000.0,0.0003092,6]
[341198125,1730619038170,-3000.0,0.0003093,6]
[341198126,1730619038182,-500.0,0.00030937,4]
[341198127,1730619038192,-500.0,0.00030937,4]
[341198128,1730619038202,-10012.65,0.00030937,3]
[341198129,1730619038213,-976.19,0.00030937,4]
[341198130,1730619038223,-500.0,0.00030938,4]
[341198131,1730619038232,-564.74,0.00030938,4]
[341198132,1730619038241,-874.7,0.00030938,4]
[341198133,1730619038251,-500.0,0.00030938,4]
[341198134,1730619038260,-500.0,0.00030938,4]
[341198135,1730619038270,-454.76332606,0.00030938,4]
[341198136,1730619038279,-500.0,0.00030938,4]
[341198137,1730619038288,-931.65,0.00030939,4]
[341198138,1730619038297,-155.549,0.00030939,27]
[341198139,1730619038306,-3000.0,0.0003094,6]
[341198140,1730619038316,-3000.0,0.0003095,6]
[341198141,1730619038325,-3000.0,0.0003096,6]
[341198142,1730619038335,-3000.0,0.0003097,6]
[341198143,1730619038348,-906.42425206,0.0003098,6]
[341198153,1730619039944,-2093.57574794,0.0003098,6]
[341198154,1730619039955,-272.70852808,0.0003099,6]
[341198155,1730619039985,-671.77936835,0.0003099,6]
[341198156,1730619039997,-1962.56246764,0.0003099,6]
[341198157,1730619040012,-92.94963593,0.0003099,6]
[341198158,1730619040021,-376.41457681,0.00031,6]
[341198174,1730619611989,861.0,0.00024,60]
[341198176,1730619635055,164.605408,0.00013973,2]
[341198182,1730620034132,-300.0,0.00024658,2]
[341198183,1730620034155,-1488.83568957,0.00029007,2]
[341198185,1730620124435,164.019484,0.00013973,2]
[341198187,1730620147095,-194.0,0.00027,2]
[341198209,1730620232165,-1714.36985653,0.00029007,2]
[341198210,1730620232214,-300.0,0.00029007,2]
[341198211,1730620232274,-1222.2205308,0.00029007,2]
[341198212,1730620232283,-176.475586,0.00029482,2]
[341198213,1730620232293,-151.0,0.0003,120]
[341198214,1730620232304,-13.72032079,0.0003,2]
[341198225,1730620240280,-155.78567921,0.0003,2]
[341198226,1730620240291,-400.0,0.00030492,2]
[341198227,1730620240305,-240.4511826,0.00030493,2]
[341198228,1730620240315,-303.1683464,0.00030493,2]
[341198229,1730620240325,-303.1683464,0.00030493,2]
[341198230,1730620240335,-1000.0,0.000308,5]
[341198231,1730620240345,-1000.0,0.000308,10]
[341198232,1730620240355,-3000.0,0.000309,6]
[341198233,1730620240368,-3000.0,0.0003091,6]
[341198234,1730620240381,-3000.0,0.0003092,6]
[341198235,1730620240392,-999.79,0.00030927,4]
[341198236,1730620240401,-500.0,0.00030927,4]
[341198237,1730620240410,-500.0,0.00030927,4]
[341198238,1730620240420,-150.01,0.00030928,2]
[341198239,1730620240430,-406.86250848,0.00030928,2]
[341198240,1730620240442,-9899.27,0.00030928,3]
[341198241,1730620240452,-892.83,0.00030928,4]
[341198242,1730620240464,-541.21,0.00030928,4]
[341198243,1730620240474,-500.0,0.00030928,2]
[341198244,1730620240484,-500.0,0.00030928,2]
[341198245,1730620240494,-500.0,0.00030928,2]
[341198246,1730620240505,-500.0,0.00030928,2]
[341198247,1730620240515,-500.60086806,0.00030928,2]
[341198248,1730620240525,-500.0,0.00030928,2]
[341198249,1730620240535,-500.0,0.00030928,2]
[341198250,1730620240546,-513.13979265,0.00030928,2]
[341198251,1730620240557,-502.53906227,0.00030928,2]
[341198252,1730620240566,-500.0,0.00030928,4]
[341198253,1730620240576,-500.0,0.00030928,4]
[341198254,1730620240586,-500.0,0.00030928,4]
[341198255,1730620240597,-512.48814703,0.00030929,4]
[341198256,1730620240607,-500.0,0.00030929,4]
[341198257,1730620240618,-500.0,0.00030929,4]
[341198258,1730620240630,-3000.0,0.0003093,6]
[341198259,1730620240642,-179.64520372,0.0003093,7]
[341198260,1730620240651,-170.578,0.00030934,27]
[341198261,1730620240660,-500.0,0.00030936,4]
[341198262,1730620240669,-3000.0,0.0003094,6]
[341198263,1730620240679,-3000.0,0.0003095,6]
[341198264,1730620240688,-5154.387796,0.0003096,6]
[341198265,1730620240697,-1051.80670618,0.00031,2]
[341198266,1730620240710,-172.448149,0.00031,7]
[341198267,1730620240720,-151.0,0.00031,7]
[341198268,1730620240729,-151.0,0.00031,7]
[341198269,1730620240738,-151.0,0.00031,7]
[341198270,1730620240747,-151.0,0.00031,7]
[341198271,1730620240757,-151.0,0.00031,7]
[341198272,1730620240767,-306.902146,0.00031,7]
[341198273,1730620240777,-306.902146,0.00031,7]
[341198274,1730620240787,-151.0,0.00031,7]
[341198275,1730620240798,-510.390872,0.00031,7]
[341198276,1730620240807,-510.390872,0.00031,7]
[341198277,1730620240816,-151.0,0.00031,7]
[341198278,1730620240825,-187.531026,0.00031,7]
[341198279,1730620240834,-151.0,0.00031,7]
[341198280,1730620240844,-151.0,0.00031,7]
[341198281,1730620240853,-151.0,0.00031,7]
[341198282,1730620240862,-314.872092,0.00031,7]
[341198283,1730620240873,-151.0,0.00031,7]
[341198284,1730620240884,-314.872092,0.00031,7]
[341198285,1730620240895,-151.0,0.00031,7]
[341198286,1730620240908,-151.0,0.00031,7]
[341198287,1730620240919,-156.734354,0.00031,7]
[341198288,1730620240928,-356.095745,0.00031,7]
[341198289,1730620240938,-151.0,0.00031,7]
[341198290,1730620240949,-356.095745,0.00031,7]
[341198291,1730620240958,-151.0,0.00031,7]
[341198292,1730620240968,-151.0,0.00031,7]
[341198293,1730620240978,-151.0,0.00031,7]
[341198294,1730620240987,-151.0,0.00031,7]
[341198295,1730620240997,-151.0,0.00031,7]
[341198296,1730620241006,-208.302426,0.00031,7]
[341198297,1730620241016,-151.0,0.00031,7]
[341198298,1730620241025,-151.0,0.00031,7]
[341198299,1730620241035,-151.0,0.00031,7]
[341198300,1730620241044,-151.0,0.00031,7]
[341198301,1730620241053,-151.0,0.00031,7]
[341198302,1730620241063,-211.561952,0.00031,7]
[341198303,1730620241073,-211.561952,0.00031,7]
[341198304,1730620241084,-155.456501,0.00031,7]
[341198305,1730620241094,-151.0,0.00031,7]
[341198306,1730620241107,-151.0,0.00031,7]
[341198307,1730620241118,-155.456501,0.00031,7]
[341198308,1730620241130,-216.451997,0.00031,7]
[341198309,1730620241139,-151.0,0.00031,7]
[341198310,1730620241150,-151.0,0.00031,7]
[341198311,1730620241163,-151.0,0.00031,7]
[341198312,1730620241173,-151.0,0.00031,7]
[341198313,1730620241183,-151.0,0.00031,7]
[341198314,1730620241193,-151.0,0.00031,7]
[341198315,1730620241204,-151.0,0.00031,7]
[341198316,1730620241213,-151.0,0.00031,7]
[341198317,1730620241225,-277.951777,0.00031,7]
[341198318,1730620241240,-277.951777,0.00031,7]
[341198319,1730620241251,-176.475586,0.00031018,2]
[341198320,1730620241263,-166.907267,0.00031121,2]
[341198321,1730620241272,-201.788758,0.00031121,2]
[341198322,1730620241282,-197.84,0.000312,3]
[341198323,1730620241293,-593.52,0.000312,3]
[341198324,1730620241306,-999.79,0.00031201,4]
[341198325,1730620241317,-500.0,0.00031201,4]
[341198326,1730620241327,-500.0,0.00031201,4]
[341198327,1730620241341,-151.0,0.00031201,7]
[341198328,1730620241351,-277.951777,0.00031201,7]
[341198329,1730620241361,-277.951777,0.00031201,7]
[341198330,1730620241370,-9899.27,0.00031202,3]
[341198331,1730620241379,-151.0,0.00031202,7]
[341198332,1730620241388,-151.0,0.00031202,7]
[341198333,1730620241397,-892.83,0.00031202,4]
[341198334,1730620241406,-151.0,0.00031202,7]
[341198335,1730620241416,-180.553857,0.00031202,7]
[341198336,1730620241425,-151.0,0.00031202,7]
[341198337,1730620241436,-151.0,0.00031202,7]
[341198338,1730620241446,-151.0,0.00031202,7]
[341198339,1730620241456,-541.21,0.00031202,4]
[341198340,1730620241467,-151.0,0.00031202,7]
[341198341,1730620241478,-151.0,0.00031202,7]
[341198342,1730620241489,-151.0,0.00031202,7]
[341198343,1730620241499,-211.561952,0.00031202,7]
[341198344,1730620241512,-211.561952,0.00031202,7]
[341198345,1730620241524,-500.0,0.00031202,4]
[341198346,1730620241535,-155.456501,0.00031202,7]
[341198347,1730620241545,-151.0,0.00031202,7]
[341198348,1730620241556,-151.0,0.00031202,7]
[341198349,1730620241566,-155.456501,0.00031202,7]
[341198350,1730620241577,-151.0,0.00031202,7]
[341198351,1730620241587,-151.0,0.00031202,7]
[341198352,1730620241598,-151.0,0.00031202,7]
[341198353,1730620241610,-151.0,0.00031202,7]
[341198354,1730620241620,-151.0,0.00031202,7]
[341198355,1730620241631,-151.0,0.00031202,7]
[341198356,1730620241642,-156.232169,0.00031202,7]
[341198357,1730620241653,-500.0,0.00031202,4]
[341198358,1730620241663,-268.105109,0.00031202,7]
[341198359,1730620241674,-277.951777,0.00031202,7]
[341198360,1730620241684,-151.0,0.00031203,7]
[341198361,1730620241694,-151.0,0.00031203,7]
[341198362,1730620241705,-151.0,0.00031203,7]
[341198363,1730620241715,-151.0,0.00031203,7]
[341198364,1730620241725,-230.62036,0.00031203,7]
[341198365,1730620241738,-306.902146,0.00031203,7]
[341198366,1730620241748,-306.902146,0.00031203,7]
[341198367,1730620241757,-151.0,0.00031203,7]
[341198368,1730620241768,-510.390872,0.00031203,7]
[341198369,1730620241778,-199.15229794,0.00031203,7]
[341198382,1730620244299,-42.94668802,0.00031,7]
[341198412,1730620719730,164.50409,0.00013973,2]
[341198420,1730621269534,214.207479,0.00013973,2]
[341198422,1730621347133,-166.4330397,0.00023786,2]
[341198423,1730621347154,-329.5137459,0.00023862,2]
[341198424,1730621347176,-168.12664363,0.00024443,2]
[341198425,1730621347196,-733.13030216,0.00024443,2]
[341198426,1730621347217,-200.0,0.00024443,2]
[341198427,1730621347237,-300.0,0.00024443,2]
[341198428,1730621347257,-179.64520373,0.00024444,2]
[341198429,1730621347276,-50433.09488901,0.00024444,4]
[341198492,1730621438307,-3823.0920186,0.00024444,4]
[341198494,1730621438316,-157.0,0.00025,2]
[341198496,1730621438326,-170.578,0.00027398,16]
[341198498,1730621438335,-300.0,0.00029685,2]
[341198500,1730621438345,-818.43,0.00030136,4]
[341198502,1730621438354,-500.0,0.00030136,4]
[341198504,1730621438364,-500.0,0.00030136,4]
[341198506,1730621438374,-500.0,0.00030136,4]
[341198508,1730621438383,-500.0,0.00030136,4]
[341198510,1730621438392,-500.0,0.00030136,4]
[341198512,1730621438401,-916.48,0.00030136,4]
[341198514,1730621438411,-9408.41,0.00030136,3]
[341198516,1730621438420,-166.907271,0.00030362,2]
[341198518,1730621438429,-201.78876,0.00030362,2]
[341198520,1730621438438,-818.43,0.0003041,4]
[341198522,1730621438448,-500.0,0.0003041,4]
[341198524,1730621438457,-500.0,0.0003041,4]
[341198526,1730621438466,-500.0,0.0003041,4]
[341198528,1730621438476,-500.0,0.0003041,4]
[341198530,1730621438485,-500.0,0.0003041,4]
[341198532,1730621438494,-916.48,0.0003041,4]
[341198534,1730621438504,-9408.41,0.0003041,3]
[341198535,1730621438513,-303.1683464,0.00030493,2]
[341198537,1730621438522,-303.1683464,0.00030493,2]
[341198538,1730621438531,-303.1683464,0.00030493,2]
[341198539,1730621438544,-303.1683464,0.00030493,2]
[341198540,1730621438553,-368.42210893,0.00030584,2]
[341198541,1730621438563,-151.0,0.00030654,7]
[341198542,1730621438574,-151.0,0.00030654,7]
[341198543,1730621438584,-151.0,0.00030654,7]
[341198544,1730621438595,-151.0,0.00030654,7]
[341198545,1730621438605,-151.0,0.00030654,7]
[341198547,1730621438615,-170.457882,0.00030654,7]
[341198549,1730621438625,-151.0,0.00030654,7]
[341198551,1730621438635,-151.0,0.00030654,7]
[341198553,1730621438648,-151.0,0.00030654,7]
[341198555,1730621438657,-151.0,0.00030654,7]
[341198557,1730621438666,-154.334564,0.00030654,7]
[341198559,1730621438676,-151.0,0.00030654,7]
[341198561,1730621438687,-166.713581,0.00030654,7]
[341198563,1730621438699,-151.0,0.00030654,7]
[341198565,1730621438709,-151.0,0.00030654,7]
[341198567,1730621438719,-151.0,0.00030654,7]
[341198569,1730621438732,-151.0,0.00030654,7]
[341198572,1730621438743,-320.486171,0.00030654,7]
[341198574,1730621438755,-320.486171,0.00030654,7]
[341198576,1730621438765,-320.486171,0.00030654,7]
[341198578,1730621438776,-320.486171,0.00030654,7]
[341198581,1730621438787,-151.0,0.00030664,7]
[341198583,1730621438798,-199.943314,0.00030664,7]
[341198585,1730621438809,-151.0,0.00030664,7]
[341198587,1730621438819,-151.0,0.00030664,7]
[341198589,1730621438829,-151.0,0.00030664,7]
[341198591,1730621438838,-151.0,0.00030664,7]
[341198593,1730621438848,-179.64520373,0.00030674,7]
[341198596,1730621438859,-151.0,0.00030674,7]
[341198598,1730621438869,-151.0,0.00030674,7]
[341198600,1730621438879,-151.0,0.00030674,7]
[341198602,1730621438888,-151.0,0.00030674,7]
[341198604,1730621438898,-151.0,0.00030674,7]
[341198606,1730621438908,-151.0,0.00030674,7]
[341198608,1730621438919,-169.249562,0.00030674,7]
[341198610,1730621438928,-169.249562,0.00030674,7]
[341198612,1730621438938,-151.0,0.00030674,7]
[341198614,1730621438949,-151.0,0.00030674,7]
[341198617,1730621438960,-423.874627,0.00030674,7]
[341198619,1730621438970,-423.874627,0.00030674,7]
[341198621,1730621438979,-818.43,0.00030684,4]
[341198623,1730621438990,-151.0,0.00030684,7]
[341198625,1730621439000,-151.0,0.00030684,7]
[341198627,1730621439011,-151.0,0.00030684,7]
[341198629,1730621439021,-283.384882,0.00030684,7]
[341198632,1730621439032,-283.384882,0.00030684,7]
[341198634,1730621439042,-151.0,0.00030684,7]
[341198636,1730621439053,-151.0,0.00030684,7]
[341198638,1730621439063,-151.0,0.00030684,7]
[341198640,1730621439073,-160.627661,0.00030684,7]
[341198642,1730621439083,-500.0,0.00030684,4]
[341198644,1730621439093,-155.838809,0.00030684,7]
[341198647,1730621439103,-245.521717,0.00030684,7]
[341198649,1730621439114,-245.521717,0.00030684,7]
[341198651,1730621439124,-151.0,0.00030684,7]
[341198653,1730621439135,-151.0,0.00030684,7]
[341198655,1730621439144,-151.0,0.00030684,7]
[341198657,1730621439156,-151.0,0.00030684,7]
[341198660,1730621439166,-151.0,0.00030684,7]
[341198662,1730621439176,-169.249562,0.00030684,7]
[341198664,1730621439185,-169.249562,0.00030684,7]
[341198666,1730621439194,-151.0,0.00030684,7]
[341198668,1730621439204,-500.0,0.00030684,4]
[341198670,1730621439213,-151.0,0.00030684,7]
[341198672,1730621439222,-500.0,0.00030684,4]
[341198674,1730621439233,-500.0,0.00030684,4]
[341198676,1730621439244,-154.647201,0.00030684,7]
[341198678,1730621439254,-423.874627,0.00030684,7]
[341198680,1730621439263,-423.874627,0.00030684,7]
[341198682,1730621439275,-151.0,0.00030684,7]
[341198684,1730621439285,-916.48,0.00030684,4]
[341198687,1730621439297,-151.0,0.00030684,7]
[341198689,1730621439308,-9408.41,0.00030684,3]
[341198691,1730621439317,-320.486171,0.00030684,7]
[341198693,1730621439327,-320.486171,0.00030684,7]
[341198695,1730621439337,-206.62821145,0.00030745,2]
[341198697,1730621439348,-283.384882,0.00030845,7]
[341198699,1730621439358,-283.384882,0.00030845,7]
[341198701,1730621439369,-151.0,0.00030845,7]
[341198703,1730621439379,-151.0,0.00030845,7]
[341198705,1730621439389,-151.0,0.00030845,7]
[341198707,1730621439398,-245.521717,0.00030845,7]
[341198710,1730621439409,-245.521717,0.00030845,7]
[341198713,1730621439427,-151.0,0.00030855,7]
[341198715,1730621439442,-151.0,0.00030855,7]
[341198717,1730621439453,-151.0,0.00030855,7]
[341198719,1730621439462,-283.384882,0.00030855,7]
[341198721,1730621439472,-283.384882,0.00030855,7]
[341198723,1730621439481,-156.46586,0.00030855,7]
[341198726,1730621439492,-151.0,0.00030855,7]
[341198728,1730621439502,-151.0,0.00030855,7]
[341198729,1730621439512,-245.521717,0.00030855,7]
[341198732,1730621439521,-245.521717,0.00030855,7]
[341198734,1730621439531,-151.0,0.00030895,7]
[341198736,1730621439541,-151.0,0.00030895,7]
[341198738,1730621439550,-151.0,0.00030895,7]
[341198740,1730621439560,-151.0,0.00030895,7]
[341198742,1730621439571,-288.941048,0.00030895,7]
[341198744,1730621439581,-151.0,0.00030895,7]
[341198746,1730621439591,-151.0,0.00030895,7]
[341198748,1730621439600,-151.0,0.00030895,7]
[341198750,1730621439610,-151.0,0.00030895,7]
[341198752,1730621439620,-151.0,0.00030895,7]
[341198754,1730621439629,-158.499298,0.00030895,7]
[341198756,1730621439638,-320.486171,0.00030895,7]
[341198758,1730621439652,-320.486171,0.00030895,7]
[341198760,1730621439661,-3000.0,0.000309,6]
[341198762,1730621439671,-153.306751,0.000309,7]
[341198764,1730621439680,-151.0,0.000309,7]
[341198766,1730621439690,-151.0,0.000309,7]
[341198768,1730621439700,-151.0,0.000309,7]
[341198770,1730621439710,-151.0,0.000309,7]
[341198774,1730621439721,-169.249562,0.000309,7]
[341198776,1730621439730,-169.249562,0.000309,7]
[341198778,1730621439740,-151.0,0.000309,7]
[341198780,1730621439750,-151.0,0.000309,7]
[341198782,1730621439760,-423.874627,0.000309,7]
[341198784,1730621439769,-423.874627,0.000309,7]
[341198786,1730621439779,-2259.02427698,0.000309,10]
[341198803,1730621440298,-3039.6003,0.000309,10]
[341198837,1730621861327,164.576981,0.00013973,2]
[341198945,1730622423942,150.22,0.00020184,2]
[341198946,1730622546628,173.801968,0.00013973,2]
[341198947,1730622549106,-300.0,0.00024999,2]
[341198948,1730622549127,-41.80703663,0.00024999,2]
[341198980,1730622632350,-300.0,0.00024999,2]
[341198981,1730622632361,-121.04937549,0.00025,2]
[341199041,1730622638449,-15307.62973902,0.00025,2]
[341199042,1730622638458,-2792.37149398,0.00025852,2]
[341199043,1730622638469,-24900.0,0.00025908,2]
[341199044,1730622638479,-178.200206,0.00026685,2]
[341199045,1730622638488,-562.9721589,0.00026814,2]
[341199046,1730622638498,-227.4782546,0.00026873,2]
[341199047,1730622638507,-168.534624,0.00026964,2]
[341199048,1730622638517,-420.0,0.00027082,2]
[341199049,1730622638526,-202.622063,0.00027352,2]
[341199050,1730622638535,-170.578,0.00027851,17]
[341199051,1730622638545,-3706.60243205,0.00027852,2]
[341199052,1730622638554,-633.71145565,0.00028185,2]
[341199053,1730622638564,-167.501039,0.00028285,2]
[341199054,1730622638573,-167.501039,0.00028332,2]
[341199055,1730622638582,-168.534624,0.00028334,2]
[341199056,1730622638592,-167.501039,0.00028379,2]
[341199057,1730622638601,-167.501039,0.00028426,2]
[341199058,1730622638611,-587.0,0.00029339,2]
[341199059,1730622638620,-716.12,0.00030136,4]
[341199060,1730622638629,-487.51185297,0.00030136,4]
[341199061,1730622638639,-500.0,0.00030136,4]
[341199062,1730622638650,-500.0,0.00030136,4]
[341199063,1730622638659,-838.25,0.00030136,4]
[341199064,1730622638669,-500.0,0.00030136,4]
[341199065,1730622638678,-500.0,0.00030136,4]
[341199066,1730622638690,-500.0,0.00030136,4]
[341199067,1730622638699,-500.0,0.00030136,4]
[341199068,1730622638710,-868.99,0.00030136,4]
[341199069,1730622638720,-4406.48918472,0.00030136,3]
[341199072,1730622640439,-1450.51208779,0.00030136,3]
[341199101,1730622643464,-2375.35872749,0.00030136,3]
[341199102,1730622643474,-500.0,0.00030136,4]
[341199103,1730622643493,-216.31116548,0.00030136,4]
[341199113,1730622744323,41658.72929864,0.0003341,30]
[341199114,1730623130885,10500.0,0.00033408,30]
[341199115,1730623181764,171.324512,0.00013973,2]
[341199117,1730623749171,-150.0,0.00024658,2]
[341199118,1730623749192,-194.0,0.00027,2]
[341199119,1730623752957,300.0,0.00024658,2]
[341199126,1730623820372,174.406186,0.00013973,2]
[341199167,1730623838699,-168.70776,0.00028515,2]
[341199168,1730623838709,-3404.8985683,0.00028854,2]
[341199169,1730623838719,-4773.53940579,0.00029096,2]
[341199170,1730623838728,-167.630116,0.00029152,2]
[341199171,1730623838738,-300.0,0.00029246,2]
[341199172,1730623838748,-283.68883452,0.00030136,4]
[341199173,1730623838757,-686.29,0.00030647,4]
[341199174,1730623838767,-500.0,0.00030648,4]
[341199175,1730623838776,-500.0,0.00030648,4]
[341199176,1730623838787,-167.630116,0.00030671,2]
[341199177,1730623838796,-832.78,0.00030681,4]
[341199178,1730623838809,-7889.34,0.00030681,3]
[341199179,1730623838819,-500.0,0.00030682,4]
[341199180,1730623838831,-803.33,0.00030682,4]
[341199181,1730623838842,-500.0,0.00030682,4]
[341199182,1730623838852,-554.49752372,0.00030821,2]
[341199183,1730623838862,-245.61473928,0.0003085,2]
[341199184,1730623838871,-3000.0,0.000309,6]
[341199185,1730623838880,-500.0,0.00030909,2]
[341199186,1730623838892,-3000.0,0.0003091,6]
[341199187,1730623838902,-3000.0,0.0003092,6]
[341199188,1730623838911,-686.29,0.00030921,4]
[341199189,1730623838921,-500.0,0.00030922,4]
[341199190,1730623838930,-500.0,0.00030922,4]
[341199191,1730623838939,-500.0,0.00030929,2]
[341199192,1730623838949,-500.0,0.00030929,2]
[341199193,1730623838959,-203.35908013,0.00030929,2]
[341199194,1730623838968,-529.50375403,0.00030929,2]
[341199195,1730623838977,-158.80676993,0.00030929,2]
[341199196,1730623838987,-3000.0,0.0003093,6]
[341199197,1730623838999,-151.0,0.00030938,7]
[341199198,1730623839011,-158.610618,0.00030938,7]
[341199199,1730623839024,-151.0,0.00030938,7]
[341199200,1730623839034,-156.692364,0.00030938,7]
[341199201,1730623839044,-151.0,0.0003094,7]
[341199202,1730623839054,-151.0,0.0003094,7]
[341199203,1730623839067,-151.0,0.0003094,7]
[341199204,1730623839077,-208.463832,0.0003094,7]
[341199205,1730623839087,-208.463832,0.0003094,7]
[341199206,1730623839097,-153.088852,0.0003094,7]
[341199207,1730623839107,-151.0,0.0003094,7]
[341199208,1730623839117,-3000.0,0.0003094,6]
[341199209,1730623839129,-154.038182,0.0003094,7]
[341199210,1730623839138,-290.160629,0.0003094,7]
[341199211,1730623839148,-151.0,0.0003094,7]
[341199212,1730623839158,-151.0,0.0003094,7]
[341199213,1730623839167,-151.0,0.0003094,7]
[341199214,1730623839176,-151.0,0.0003094,7]
[341199215,1730623839185,-192.04966527,0.0003094,7]
[341199216,1730623839197,-151.0,0.00030947,7]
[341199217,1730623839211,-151.0,0.00030947,7]
[341199218,1730623839221,-151.0,0.00030947,7]
[341199219,1730623839230,-151.0,0.00030947,7]
[341199220,1730623839354,-151.0,0.00030947,7]
[341199221,1730623839364,-151.0,0.00030948,7]
[341199222,1730623839373,-155.298124,0.00030948,7]
[341199223,1730623839382,-208.463832,0.00030948,7]
[341199224,1730623839391,-208.463832,0.00030948,7]
[341199225,1730623839402,-151.0,0.00030948,7]
[341199226,1730623839413,-151.0,0.00030948,7]
[341199227,1730623839423,-198.369418,0.00030948,7]
[341199228,1730623839435,-198.369418,0.00030948,7]
[341199229,1730623839444,-151.0,0.00030948,7]
[341199230,1730623839456,-171.865202,0.00030948,7]
[341199231,1730623839467,-171.865202,0.00030948,7]
[341199232,1730623839477,-151.0,0.00030948,7]
[341199233,1730623839488,-151.0,0.0003095,7]
[341199234,1730623839499,-208.463832,0.0003095,7]
[341199235,1730623839510,-208.463832,0.0003095,7]
[341199236,1730623839522,-151.0,0.0003095,7]
[341199237,1730623839532,-3000.0,0.0003095,6]
[341199238,1730623839541,-152.621367,0.0003095,7]
[341199239,1730623839550,-151.0,0.0003095,7]
[341199240,1730623839560,-151.0,0.0003095,7]
[341199241,1730623839570,-151.0,0.0003095,7]
[341199242,1730623839579,-151.0,0.0003095,7]
[341199243,1730623839588,-151.0,0.0003095,7]
[341199244,1730623839598,-151.0,0.0003095,7]
[341199245,1730623839608,-151.0,0.0003095,7]
[341199246,1730623839617,-151.0,0.0003095,7]
[341199247,1730623839627,-151.0,0.0003095,7]
[341199248,1730623839636,-151.0,0.0003095,7]
[341199249,1730623839646,-151.0,0.0003095,7]
[341199250,1730623839655,-192.291702,0.0003095,7]